fUSD/lending_fUSD_20250211
["ID","MTS","AMOUNT","RATE_DAILY","PERIOD"]
[352770218,1739301045759,-500.0,0.00018972,2]
[352770219,1739301045770,-500.0,0.00018972,2]
[352770220,1739301045780,-500.0,0.00018972,2]
[352770221,1739301045791,-500.0,0.00018972,2]
[352770222,1739301045804,-500.0,0.00018972,2]
[352770223,1739301045816,-500.0,0.00018972,2]
[352770224,1739301045828,-500.0,0.00018972,2]
[352770225,1739301045838,-248.29446515,0.00018972,2]
[352770226,1739301045851,-500.0,0.00018972,2]
[352770227,1739301045861,-500.0,0.00018972,2]
[352770228,1739301045871,-500.0,0.00018972,2]
[352770229,1739301045881,-500.0,0.00018972,2]
[352770230,1739301045891,-500.0,0.00018972,2]
[352770231,1739301045901,-500.0,0.00018972,2]
[352770233,1739301045911,-500.0,0.00018972,2]
[352770235,1739301045921,-500.0,0.00018972,2]
[352770237,1739301045932,-500.0,0.00018972,2]
[352770239,1739301045943,-500.0,0.00018972,2]
[352770241,1739301045954,-592.03407712,0.00018972,2]
[352770243,1739301045965,-500.0,0.00018972,2]
[352770245,1739301045976,-500.0,0.00018972,2]
[352770247,1739301045987,-500.0,0.00018972,2]
[352770249,1739301045997,-500.0,0.00018972,2]
[352770251,1739301046007,-500.0,0.00018972,2]
[352770254,1739301046017,-500.0,0.00018972,2]
[352770256,1739301046027,-500.0,0.00018972,2]
[352770258,1739301046037,-500.0,0.00018972,2]
[352770260,1739301046047,-500.0,0.00018972,2]
[352770262,1739301046060,-500.0,0.00018972,2]
[352770264,1739301046070,-500.0,0.00018972,2]
[352770266,1739301046081,-500.0,0.00018972,2]
[352770268,1739301046101,-500.0,0.00018972,2]
[352770270,1739301046112,-500.0,0.00018972,2]
[352770272,1739301046122,-500.0,0.00018972,2]
[352770274,1739301046133,-500.0,0.00018972,2]
[352770277,1739301046143,-500.0,0.00018972,2]
[352770279,1739301046154,-500.0,0.00018973,2]
[352770281,1739301046164,-323.97,0.00018973,2]
[352770283,1739301046174,-523.78,0.00018973,2]
[352770285,1739301046186,-251.18281178,0.00018973,2]
[352770287,1739301046196,-500.0,0.00018973,2]
[352770289,1739301046208,-541.44,0.00018973,2]
[352770291,1739301046218,-500.0,0.00018973,2]
[352770293,1739301046231,-500.0,0.00018973,2]
[352770296,1739301046246,-403.4344517,0.00018973,2]
[352770298,1739301046257,-500.0,0.00018973,2]
[352770300,1739301046267,-500.0,0.00018973,2]
[352770302,1739301046277,-500.0,0.00018973,2]
[352770304,1739301046288,-500.0,0.00018973,2]
[352770306,1739301046299,-500.0,0.00018973,2]
[352770308,1739301046309,-500.0,0.00018973,2]
[352770310,1739301046320,-500.0,0.00018973,2]
[352770312,1739301046330,-500.0,0.00018973,2]
[352770313,1739301046341,-633.89554256,0.00018973,2]
[352770314,1739301046352,-500.0,0.00018973,2]
[352770315,1739301046363,-401.40335242,0.00018973,2]
[352770316,1739301046373,-500.0,0.00018973,2]
[352770317,1739301046384,-500.0,0.00018973,2]
[352770318,1739301046395,-500.0,0.00018973,2]
[352770319,1739301046406,-11881.59,0.00018976,7]
[352770320,1739301046416,-11881.59,0.00018976,7]
[352770321,1739301046426,-5100.0,0.0001899,27]
[352770322,1739301046437,-5100.0,0.0001899,28]
[352770323,1739301046447,-5100.0,0.0001899,29]
[352770324,1739301046458,-5100.0,0.0001899,30]
[352770325,1739301046468,-1487.65790178,0.0001899,7]
[352770326,1739301046478,-4450.246815,0.0001899,22]
[352770328,1739301046489,-5100.0,0.0001899,26]
[352770329,1739301046500,-5100.0,0.0001899,33]
[352770330,1739301046511,-5100.0,0.0001899,34]
[352770331,1739301046522,-4763.62545746,0.00018992,2]
[352770332,1739301046532,-5385184.56686724,0.00018992,5]
[352770333,1739301046548,-13077.9726323,0.00018992,5]
[352770334,1739301046560,-73874.64618211,0.00018992,5]
[352770335,1739301046573,-5755.88586317,0.00018992,5]
[352770336,1739301046585,-1794.55587893,0.00018992,5]
[352770337,1739301046600,-4019.09127962,0.00018992,5]
[352770338,1739301046612,-315.6,0.00018992,5]
[352770339,1739301046626,-77034.90934473,0.00018992,5]
[352770340,1739301046640,-5098.39319245,0.00018992,5]
[352770341,1739301046652,-9793.7,0.00018992,5]
[352770342,1739301046665,-4226.27976777,0.00018992,5]
[352770343,1739301046694,-957.1562,0.00018992,5]
[352770344,1739301478566,1200.60793999,0.0002,120]
[352770345,1739301844299,-2424.0,8.973e-05,2]
[352770393,1739302203762,-0.3417,8.973e-05,2]
[352770394,1739302203788,-500.0,9.973e-05,2]
[352770395,1739302203817,-99499.6583,0.0001,2]
[352770396,1739302208450,-1202.87262528,0.0001,2]
[352770397,1739302208475,-22797.12737472,0.0001,2]
[352770398,1739302209779,1000.0,0.0002,120]
[352770403,1739302217043,1000.0,0.0002,120]
[352770404,1739302217469,1000.0,0.0002,120]
[352770405,1739302217984,1000.0,0.0002,120]
[352770406,1739302218287,1000.0,0.0002,120]
[352770418,1739302231643,-4850.0,0.0001,2]
[352770419,1739302231655,-622.91559,0.0001,2]
[352770420,1739302231730,-2608.00000003,0.0001,2]
[352770421,1739302231742,-358.94444225,0.0001,2]
[352770422,1739302231754,-57646.95811522,0.0001,2]
[352770423,1739302231766,-51396.82031127,0.0001,2]
[352770424,1739302231918,-4081.41479164,0.0001,2]
[352770425,1739302231929,-4526.54749149,0.0001,2]
[352770426,1739302231941,-1184.17281378,0.0001,2]
[352770427,1739302231952,-3046.18841979,0.0001,2]
[352770428,1739302231973,-319604.04525725,0.0001,2]
[352770429,1739302231984,-2650.38,0.0001,2]
[352770430,1739302231995,-696.62044734,0.0001,2]
[352770432,1739302232093,-955.0,0.0001,2]
[352770503,1739302237700,-345.87506225,0.0001,2]
[352770504,1739302238462,-833.62208315,0.0001,2]
[352770505,1739302238476,-4291.7545972,0.0001,2]
[352770506,1739302238489,-437.01263503,0.0001,2]
[352770507,1739302238502,-441.29309039,0.0001,2]
[352770508,1739302238515,-2614.97494828,0.0001,2]
[352770586,1739302239552,-95397.63854388,0.0001,2]
[352770589,1739302239565,-4761.9,0.0001,2]
[352770594,1739302239611,-477.141665,0.0001,2]
[352770606,1739302239721,-191039.99999983,0.0001,2]
[352770625,1739302239928,-35524.15064795,0.0001,2]
[352770626,1739302239939,-1215.77634296,0.0001,2]
[352770627,1739302239951,-1465.11387918,0.0001,2]
[352770628,1739302239963,-5799.20459309,0.0001,2]
[352770629,1739302239975,-476.9765,0.0001,2]
[352770630,1739302239996,-478.075,0.0001,2]
[352770875,1739302242621,-732.542,0.0001,2]
[352770878,1739302242633,-207207.17686504,0.0001,2]
[352770880,1739302242645,-1397.92525194,0.0001,2]
[352770882,1739302242657,-1281.37590721,0.0001,2]
[352770885,1739302242680,-1585.000015,0.0001,2]
[352770887,1739302242692,-127105.20834383,0.0001,2]
[352770892,1739302242736,-1556.41516924,0.0001,2]
[352770894,1739302242748,-468204.3453267,0.0001,2]
[352770896,1739302242758,-1658.23802081,0.0001,2]
[352770898,1739302242767,-315.2490058,0.0001,2]
[352770900,1739302242777,-150.65,0.00011,2]
[352770901,1739302242786,-150.65,0.00011,2]
[352770904,1739302242800,-150.65,0.00011,2]
[352770905,1739302242810,-150.65,0.00011,2]
[352770907,1739302242820,-150.65,0.00011,2]
[352770909,1739302242830,-150.65,0.00011,2]
[352770911,1739302242840,-150.65,0.00011,2]
[352770913,1739302242849,-150.65,0.00011,2]
[352770915,1739302242860,-150.65,0.00011,2]
[352770916,1739302242870,-150.65,0.00011,2]
[352770918,1739302242880,-150.65,0.00011,2]
[352770920,1739302242890,-161.20408657,0.00012452,2]
[352770922,1739302242899,-185.39705836,0.00012552,2]
[352770924,1739302242909,-2830.92317906,0.00012652,2]
[352770925,1739302242919,-150.65,0.0001299,2]
[352770927,1739302242929,-150.65,0.0001299,2]
[352770929,1739302242938,-150.65,0.0001299,2]
[352770931,1739302242947,-150.65,0.0001299,2]
[352770933,1739302242958,-150.65,0.0001299,2]
[352770935,1739302242967,-150.65,0.0001299,2]
[352770936,1739302242977,-150.0,0.00013,2]
[352770938,1739302242987,-320663.82912247,0.00013,2]
[352770939,1739302242996,-642.85,0.00013152,2]
[352770940,1739302243006,-500.0,0.00013699,2]
[352770941,1739302243016,-500.0,0.00014192,2]
[352770942,1739302243031,-1000.0,0.00014247,2]
[352770943,1739302243041,-500.0,0.000143,2]
[352770944,1739302243051,-500.0,0.000143,2]
[352770945,1739302243061,-185.39705834,0.00014389,2]
[352770946,1739302243071,-1000.0,0.00014403,2]
[352770947,1739302243080,-676.92831,0.000146,2]
[352770948,1739302243090,-439.7,0.00015069,2]
[352770949,1739302243101,-760.88,0.00015069,2]
[352770950,1739302243111,-646.48,0.00015069,2]
[352770952,1739302243121,-526.17,0.00015069,2]
[352770953,1739302243131,-400.0,0.00015156,2]
[352770955,1739302243141,-500.0,0.00015156,2]
[352770957,1739302243150,-500.0,0.00015156,2]
[352770959,1739302243159,-2206.0,0.000152,5]
[352770960,1739302243169,-266.6237613,0.00015248,2]
[352770962,1739302243179,-642.85,0.00015415,2]
[352770964,1739302243189,-250.0,0.00015637,2]
[352770965,1739302243199,-2000.0,0.00015743,2]
[352770967,1739302243209,-185.39705834,0.00016226,2]
[352770969,1739302243219,-6858.55,0.00016276,2]
[352770971,1739302243228,-1000.0,0.00016297,2]
[352770973,1739302243239,-676.92831,0.000164,2]
[352770974,1739302243248,-150.65,0.00016428,2]
[352770976,1739302243258,-500.0,0.00016438,2]
[352770978,1739302243268,-500.0,0.00016438,2]
[352770980,1739302243278,-500.0,0.00016438,2]
[352770982,1739302243288,-500.0,0.00016438,2]
[352770984,1739302243298,-500.0,0.00016438,2]
[352770986,1739302243308,-500.0,0.00016438,2]
[352770987,1739302243317,-500.0,0.00016438,2]
[352770989,1739302243327,-500.0,0.00016438,2]
[352770991,1739302243337,-500.0,0.00016438,2]
[352770993,1739302243347,-500.0,0.00016438,2]
[352770995,1739302243358,-500.0,0.00016438,2]
[352770997,1739302243368,-500.0,0.00016438,2]
[352770999,1739302243377,-500.0,0.00016438,2]
[352771000,1739302243387,-500.0,0.00016438,2]
[352771002,1739302243397,-500.0,0.00016438,2]
[352771004,1739302243407,-500.0,0.00016438,2]
[352771006,1739302243417,-500.0,0.00016438,2]
[352771008,1739302243426,-500.0,0.00016438,2]
[352771026,1739302243663,-500.0,0.00016438,2]
[352771027,1739302243673,-500.0,0.00016438,2]
[352771028,1739302243683,-500.0,0.00016438,2]
[352771029,1739302243693,-500.0,0.00016438,2]
[352771030,1739302243703,-500.0,0.00016438,2]
[352771031,1739302243713,-500.0,0.00016438,2]
[352771032,1739302243722,-538.63,0.00016438,2]
[352771033,1739302243732,-500.0,0.00016438,2]
[352771034,1739302243742,-500.0,0.00016438,2]
[352771035,1739302243752,-500.0,0.00016438,2]
[352771036,1739302243761,-500.0,0.00016438,2]
[352771037,1739302243771,-500.0,0.00016438,2]
[352771038,1739302243781,-500.0,0.00016438,2]
[352771039,1739302243791,-500.0,0.00016438,2]
[352771040,1739302243801,-500.0,0.00016438,2]
[352771041,1739302243810,-500.0,0.00016438,2]
[352771042,1739302243820,-500.0,0.00016438,2]
[352771043,1739302243829,-500.0,0.00016438,2]
[352771044,1739302243839,-461.599385,0.00016438,2]
[352771045,1739302243850,-500.0,0.00016438,2]
[352771046,1739302243860,-500.0,0.00016438,2]
[352771047,1739302243870,-500.0,0.00016438,2]
[352771048,1739302243880,-156.695849,0.00016438,2]
[352771049,1739302243891,-500.0,0.00016438,2]
[352771050,1739302243901,-500.0,0.00016438,2]
[352771051,1739302243911,-500.0,0.00016438,2]
[352771052,1739302243922,-500.0,0.00016438,2]
[352771053,1739302243932,-500.0,0.00016438,2]
[352771054,1739302243942,-500.0,0.00016438,2]
[352771055,1739302243951,-500.0,0.00016438,2]
[352771056,1739302243961,-501.15305456,0.00016438,2]
[352771057,1739302243970,-500.0,0.00016438,2]
[352771058,1739302243980,-156.273019,0.00016438,2]
[352771059,1739302243989,-500.0,0.00016438,2]
[352771060,1739302243999,-268.65837626,0.00016438,2]
[352771061,1739302244008,-500.0,0.00016438,2]
[352771062,1739302244018,-500.0,0.00016438,2]
[352771063,1739302244028,-500.0,0.00016438,2]
[352771064,1739302244040,-500.0,0.00016438,2]
[352771065,1739302244050,-616.58073283,0.00016438,2]
[352771066,1739302244060,-500.0,0.00016438,2]
[352771067,1739302244071,-500.0,0.00016438,2]
[352771068,1739302244080,-500.0,0.00016438,2]
[352771069,1739302244091,-500.0,0.00016438,2]
[352771070,1739302244105,-500.0,0.00016438,2]
[352771071,1739302244115,-500.0,0.00016438,2]
[352771072,1739302244125,-500.0,0.00016438,2]
[352771073,1739302244135,-500.0,0.00016438,2]
[352771074,1739302244145,-8443.32,0.0001651,2]
[352771075,1739302244155,-245.55,0.00016558,2]
[352771076,1739302244164,-488.18,0.00016575,2]
[352771077,1739302244174,-500.0,0.00016575,2]
[352771078,1739302244184,-500.0,0.00016575,2]
[352771079,1739302244194,-500.0,0.00016575,2]
[352771080,1739302244203,-500.0,0.00016575,2]
[352771081,1739302244213,-500.0,0.00016575,2]
[352771082,1739302244222,-500.0,0.00016575,2]
[352771083,1739302244232,-500.0,0.00016575,2]
[352771084,1739302244244,-500.0,0.00016575,2]
[352771085,1739302244254,-500.0,0.00016575,2]
[352771086,1739302244263,-500.0,0.00016575,2]
[352771087,1739302244273,-500.0,0.00016575,2]
[352771088,1739302244283,-500.0,0.00016575,2]
[352771089,1739302244292,-500.0,0.00016575,2]
[352771090,1739302244302,-500.0,0.00016575,2]
[352771091,1739302244311,-500.0,0.00016575,2]
[352771092,1739302244320,-500.0,0.00016575,2]
[352771093,1739302244330,-500.0,0.00016575,2]
[352771094,1739302244339,-500.0,0.00016575,2]
[352771095,1739302244350,-332.4600642,0.00016575,2]
[352771096,1739302244360,-500.0,0.00016575,2]
[352771097,1739302244370,-500.0,0.00016575,2]
[352771098,1739302244379,-538.63,0.00016575,2]
[352771099,1739302244389,-500.0,0.00016575,2]
[352771100,1739302244399,-500.0,0.00016575,2]
[352771101,1739302244409,-500.0,0.00016575,2]
[352771102,1739302244420,-500.0,0.00016575,2]
[352771103,1739302244430,-500.0,0.00016575,2]
[352771104,1739302244440,-500.0,0.00016575,2]
[352771105,1739302244450,-500.0,0.00016575,2]
[352771106,1739302244460,-500.0,0.00016575,2]
[352771107,1739302244470,-198.49,0.00016575,2]
[352771108,1739302244480,-500.0,0.00016575,2]
[352771109,1739302244489,-461.599385,0.00016575,2]
[352771110,1739302244499,-500.0,0.00016575,2]
[352771111,1739302244510,-500.0,0.00016575,2]
[352771112,1739302244520,-500.0,0.00016575,2]
[352771113,1739302244529,-500.0,0.00016575,2]
[352771114,1739302244540,-500.0,0.00016575,2]
[352771115,1739302244549,-500.0,0.00016575,2]
[352771116,1739302244559,-500.0,0.00016575,2]
[352771117,1739302244569,-593.41304799,0.00016575,2]
[352771118,1739302244579,-500.0,0.00016575,2]
[352771119,1739302244588,-500.0,0.00016575,2]
[352771120,1739302244598,-500.0,0.00016575,2]
[352771121,1739302244608,-500.0,0.00016575,2]
[352771122,1739302244617,-500.0,0.00016575,2]
[352771123,1739302244627,-500.0,0.00016575,2]
[352771124,1739302244636,-500.0,0.00016575,2]
[352771125,1739302244646,-500.0,0.00016575,2]
[352771126,1739302244656,-500.0,0.00016575,2]
[352771127,1739302244666,-605.26,0.00016658,30]
[352771128,1739302244676,-19734.38830822,0.00016687,5]
[352771129,1739302244686,-4107.17549643,0.0001669,5]
[352771130,1739302244695,-1000.0,0.00016691,2]
[352771131,1739302244705,-19734.38830822,0.00016698,5]
[352771132,1739302244715,-344.57215728,0.00016698,5]
[352771133,1739302244725,-200.0,0.00016705,5]
[352771134,1739302244735,-500.0,0.00016712,2]
[352771135,1739302244745,-500.0,0.00016712,2]
[352771136,1739302244754,-500.0,0.00016712,2]
[352771137,1739302244764,-500.0,0.00016712,2]
[352771138,1739302244773,-500.0,0.00016712,2]
[352771139,1739302244784,-500.0,0.00016712,2]
[352771140,1739302244794,-500.0,0.00016712,2]
[352771141,1739302244803,-585.24,0.00016712,2]
[352771142,1739302244813,-500.0,0.00016712,2]
[352771143,1739302244822,-500.0,0.00016712,2]
[352771144,1739302244831,-500.0,0.00016712,2]
[352771145,1739302244841,-500.0,0.00016712,2]
[352771146,1739302244852,-500.0,0.00016712,2]
[352771147,1739302244861,-500.0,0.00016712,2]
[352771148,1739302244871,-608.52,0.00016712,2]
[352771149,1739302244880,-500.0,0.00016712,2]
[352771150,1739302244890,-500.0,0.00016712,2]
[352771151,1739302244899,-538.63,0.00016712,2]
[352771152,1739302244909,-524.46,0.00016712,2]
[352771153,1739302244919,-500.0,0.00016712,2]
[352771154,1739302244928,-500.0,0.00016712,2]
[352771155,1739302244939,-500.0,0.00016712,2]
[352771156,1739302244949,-500.0,0.00016712,2]
[352771157,1739302244959,-500.0,0.00016712,2]
[352771158,1739302244969,-500.0,0.00016712,2]
[352771159,1739302244979,-500.0,0.00016712,2]
[352771160,1739302244989,-575.80716243,0.00016712,2]
[352771161,1739302244999,-461.599385,0.00016712,2]
[352771162,1739302245009,-500.0,0.00016712,2]
[352771163,1739302245020,-569.63,0.00016712,2]
[352771164,1739302245031,-500.0,0.00016712,2]
[352771165,1739302245042,-500.0,0.00016712,2]
[352771166,1739302245052,-500.0,0.00016712,2]
[352771167,1739302245063,-500.0,0.00016712,2]
[352771168,1739302245073,-500.0,0.00016712,2]
[352771169,1739302245083,-500.0,0.00016712,2]
[352771170,1739302245092,-4107.17549643,0.00016719,5]
[352771171,1739302245103,-200.0,0.00016721,5]
[352771172,1739302245116,-200.0,0.00016725,5]
[352771173,1739302245127,-344.57215728,0.00016731,5]
[352771174,1739302245137,-4107.17549643,0.00016736,5]
[352771175,1739302245148,-24160.26895116,0.00016737,5]
[352771176,1739302245157,-344.57215728,0.00016737,5]
[352771177,1739302245167,-4107.17549643,0.0001674,5]
[352771178,1739302245177,-24160.26895116,0.00016741,5]
[352771179,1739302245188,-19734.38830822,0.00016751,5]
[352771180,1739302245197,-24160.26895116,0.00016761,5]
[352771181,1739302245207,-344.57215728,0.00016765,5]
[352771182,1739302245217,-200.0,0.00016778,5]
[352771183,1739302245228,-24160.26895116,0.0001678,5]
[352771184,1739302245239,-200.0,0.00016784,5]
[352771185,1739302245249,-19734.38830822,0.00016799,5]
[352771186,1739302245259,-172.08,0.00016824,2]
[352771187,1739302245268,-150.65,0.00016839,2]
[352771188,1739302245278,-500.0,0.00016849,2]
[352771189,1739302245287,-523.87218205,0.00016849,2]
[352771190,1739302245297,-500.0,0.00016849,2]
[352771191,1739302245307,-500.0,0.00016849,2]
[352771192,1739302245318,-500.0,0.00016849,2]
[352771194,1739302245328,-500.0,0.00016849,2]
[352771196,1739302245338,-500.0,0.00016849,2]
[352771198,1739302245349,-500.0,0.00016849,2]
[352771200,1739302245360,-500.0,0.00016849,2]
[352771201,1739302245369,-500.0,0.00016849,2]
[352771203,1739302245379,-500.0,0.00016849,2]
[352771204,1739302245389,-316.51,0.00016849,2]
[352771205,1739302245399,-370.16,0.00016849,2]
[352771206,1739302245409,-500.0,0.00016849,2]
[352771207,1739302245418,-500.0,0.00016849,2]
[352771208,1739302245427,-538.63,0.00016849,2]
[352771209,1739302245437,-500.0,0.00016849,2]
[352771211,1739302245447,-500.0,0.00016849,2]
[352771212,1739302245456,-500.0,0.00016849,2]
[352771214,1739302245466,-500.0,0.00016849,2]
[352771215,1739302245475,-500.0,0.00016849,2]
[352771217,1739302245485,-506.95,0.00016849,2]
[352771220,1739302245505,-500.0,0.00016849,2]
[352771221,1739302245516,-461.599385,0.00016849,2]
[352771223,1739302245527,-500.0,0.00016849,2]
[352771225,1739302245537,-500.0,0.00016849,2]
[352771227,1739302245547,-500.0,0.00016849,2]
[352771230,1739302245556,-500.0,0.00016849,2]
[352771232,1739302245566,-439.35674633,0.00016849,2]
[352771234,1739302245575,-500.0,0.00016986,2]
[352771237,1739302245585,-500.0,0.00016986,2]
[352771238,1739302245595,-500.0,0.00016986,2]
[352771240,1739302245604,-500.0,0.00016986,2]
[352771241,1739302245615,-500.0,0.00016986,2]
[352771243,1739302245625,-500.0,0.00016986,2]
[352771244,1739302245635,-500.0,0.00016986,2]
[352771246,1739302245645,-500.0,0.00016986,2]
[352771247,1739302245655,-500.0,0.00016986,2]
[352771248,1739302245665,-500.0,0.00016986,2]
[352771249,1739302245675,-213.8,0.00016986,2]
[352771250,1739302245685,-500.0,0.00016986,2]
[352771251,1739302245695,-538.63,0.00016986,2]
[352771252,1739302245705,-500.0,0.00016986,2]
[352771253,1739302245715,-500.0,0.00016986,2]
[352771254,1739302245725,-500.0,0.00016986,2]
[352771255,1739302245735,-500.0,0.00016986,2]
[352771256,1739302245745,-500.0,0.00016986,2]
[352771257,1739302245755,-500.0,0.00016986,2]
[352771258,1739302245765,-461.599385,0.00016986,2]
[352771259,1739302245775,-500.0,0.00016986,2]
[352771260,1739302245785,-500.0,0.00016986,2]
[352771261,1739302245795,-500.0,0.00016986,2]
[352771262,1739302245805,-644.99622649,0.00016986,2]
[352771263,1739302245815,-500.0,0.00017123,2]
[352771264,1739302245825,-410.69472097,0.00017123,2]
[352771265,1739302245835,-205.13493486,0.00017123,2]
[352771266,1739302245844,-500.0,0.00017123,2]
[352771267,1739302245856,-500.0,0.00017123,2]
[352771268,1739302245866,-499.95937663,0.00017123,2]
[352771269,1739302245876,-500.0,0.00017123,2]
[352771270,1739302245885,-500.0,0.00017123,2]
[352771271,1739302245896,-500.0,0.00017123,2]
[352771272,1739302245907,-363.34099542,0.00017123,2]
[352771273,1739302245917,-500.0,0.00017123,2]
[352771274,1739302245927,-538.63,0.00017123,2]
[352771275,1739302245936,-500.0,0.00017123,2]
[352771276,1739302245946,-500.0,0.00017123,2]
[352771277,1739302245956,-500.0,0.00017123,2]
[352771278,1739302245966,-500.0,0.00017123,2]
[352771279,1739302245975,-500.0,0.00017123,2]
[352771280,1739302245985,-500.0,0.00017123,2]
[352771281,1739302245995,-461.599385,0.00017123,2]
[352771282,1739302246005,-629.06073537,0.00017123,2]
[352771283,1739302246015,-500.0,0.00017123,2]
[352771284,1739302246032,-346.04784443,0.00017123,2]
[352771285,1739302246046,-157.76,0.000172,7]
[352771286,1739302246055,-632.21839945,0.0001726,2]
[352771287,1739302246065,-500.0,0.0001726,2]
[352771288,1739302246076,-500.0,0.0001726,2]
[352771289,1739302246086,-500.0,0.0001726,2]
[352771290,1739302246097,-339.31688909,0.0001726,2]
[352771291,1739302246111,-500.0,0.0001726,2]
[352771292,1739302246121,-500.0,0.0001726,2]
[352771293,1739302246131,-538.63,0.0001726,2]
[352771295,1739302246141,-500.0,0.0001726,2]
[352771296,1739302246150,-500.0,0.0001726,2]
[352771298,1739302246161,-575.84577093,0.0001726,2]
[352771300,1739302246171,-500.0,0.0001726,2]
[352771301,1739302246181,-500.0,0.0001726,2]
[352771302,1739302246191,-500.0,0.0001726,2]
[352771304,1739302246201,-461.599385,0.0001726,2]
[352771305,1739302246211,-336.97421124,0.0001726,2]
[352771307,1739302246221,-390.1,0.00017322,2]
[352771309,1739302246232,-500.0,0.00017397,2]
[352771310,1739302246242,-500.0,0.00017397,2]
[352771311,1739302246252,-500.0,0.00017397,2]
[352771312,1739302246263,-500.0,0.00017397,2]
[352771313,1739302246274,-386.63566947,0.00017397,2]
[352771314,1739302246286,-538.63,0.00017397,2]
[352771315,1739302246297,-500.0,0.00017397,2]
[352771316,1739302246308,-500.0,0.00017397,2]
[352771317,1739302246321,-500.0,0.00017397,2]
[352771318,1739302246332,-500.0,0.00017397,2]
[352771319,1739302246343,-500.0,0.00017397,2]
[352771320,1739302246356,-150.0,0.00017507,2]
[352771321,1739302246370,-150.0,0.00017507,2]
[352771322,1739302246382,-500.0,0.00017534,2]
[352771323,1739302246392,-500.0,0.00017534,2]
[352771324,1739302246403,-500.0,0.00017534,2]
[352771325,1739302246415,-500.0,0.00017534,2]
[352771326,1739302246425,-538.63,0.00017534,2]
[352771327,1739302246436,-488.22751716,0.00017534,2]
[352771328,1739302246447,-500.0,0.00017534,2]
[352771329,1739302246457,-500.0,0.00017534,2]
[352771330,1739302246467,-500.0,0.00017534,2]
[352771331,1739302246479,-500.0,0.00017534,2]
[352771332,1739302246489,-1500.0,0.00017632,2]
[352771333,1739302246500,-500.0,0.00017671,2]
[352771334,1739302246510,-500.0,0.00017671,2]
[352771335,1739302246521,-500.0,0.00017671,2]
[352771336,1739302246533,-500.0,0.00017671,2]
[352771337,1739302246543,-538.63,0.00017671,2]
[352771338,1739302246554,-500.0,0.00017671,2]
[352771339,1739302246566,-303.66944842,0.00017671,2]
[352771340,1739302246576,-500.0,0.00017671,2]
[352771341,1739302246586,-500.0,0.00017671,2]
[352771342,1739302246596,-642.85,0.00017679,2]
[352771343,1739302246611,-500.0,0.00017715,2]
[352771344,1739302246621,-442.3,0.00017728,2]
[352771345,1739302246632,-576.81,0.00017728,2]
[352771346,1739302246642,-165.63,0.00017766,2]
[352771347,1739302246653,-500.0,0.00017808,2]
[352771348,1739302246663,-500.0,0.00017808,2]
[352771349,1739302246673,-500.0,0.00017808,2]
[352771350,1739302246683,-414.8992886,0.00017808,2]
[352771351,1739302246693,-538.63,0.00017808,2]
[352771352,1739302246704,-500.0,0.00017808,2]